Cogmind - Beta 16 *** ADVENTURER MODE // 2025.12.20 @ 03:48:33 Player: Cogmind Result: Destroyed by SQ-A7F(R) with Subdweller Machine Gun Performance ------------- Evolutions (0) 0 Regions Visited (2) 400 Robots Destroyed (19) 95 Value Destroyed (474) 474 Prototype IDs (2) 40 Alien Tech Used (0) 0 Bonus (0) 0 TOTAL SCORE: 1009 Bonus ------- None Cogmind --------- Core Integrity 0/250 Matter 279/300 Energy 250/250 System Corruption 0% Temperature Cool (0) Movement Walking (120) Location -10/Subcaves Parts ------- > --- POWER (1) -------- Ion Engine > --- PROPULSION (2) --- Aluminum Leg Aluminum Leg > --- UTILITY (2) ------ Small Storage Unit Structural Scanner > --- WEAPON (2) ------- Light Assault Rifle Mining Laser > --- INVENTORY (8) ---- Light Ion Engine Aluminum Leg Large Storage Unit Machine Analyzer Visual Processing Unit Medium Laser Welding Torch Peak State ------------ > --- POWER ------------ Ion Engine > --- PROPULSION ------- Aluminum Leg Aluminum Leg > --- UTILITY ---------- Small Storage Unit Structural Scanner > --- WEAPON ----------- Light Assault Rifle Mining Laser > --- INVENTORY -------- Light Ion Engine Aluminum Leg Large Storage Unit Machine Analyzer Visual Processing Unit Medium Laser Welding Torch [Rating: 8] Favorites ----------- Power Ion Engine Engine Ion Engine Propulsion Aluminum Leg Leg Aluminum Leg Utility Small Storage Unit Device Structural Scanner Storage Small Storage Unit Weapon Light Assault Rifle Energy Gun Medium Laser Ballistic Gun Light Assault Rifle Special Weapon Mining Laser Build | -11 -10 -10 ------- Run | Yrd Mat Sub Slots Evolved . | . . . Power . | . . . Propulsion . | . . . Utility . | . . . Weapon . | . . . Parts Attached 17 | 6 9 2 Power 3 | 1 2 . Engine 3 | 1 2 . Core . | . . . Reactor . | . . . Propulsion 6 | 2 2 2 Treads . | . . . Leg 6 | 2 2 2 Wheel . | . . . Hover . | . . . Flight . | . . . Utility 2 | 1 1 . Device 1 | . 1 . Storage 1 | 1 . . Processor . | . . . Hackware . | . . . Protection . | . . . Artifact . | . . . Weapon 6 | 2 4 . Energy Gun 1 | . 1 . Energy Cannon . | . . . Ballistic Gun 4 | 2 2 . Ballistic Cannon . | . . . Launcher . | . . . Special Weapon 1 | . 1 . Impact Weapon . | . . . Slashing Weapon . | . . . Piercing Weapon . | . . . Special Melee Weapon . | . . . Unidentified Prototypes . | . . . Parts Lost 3 | . 3 . Power . | . . . Propulsion 2 | . 2 . Utility . | . . . Weapon 1 | . 1 . Highest Loss Streak 3 | . 3 . To Critical Strikes . | . . . Average Backups 5 | 2 5 6 Power 1 | 1 1 1 Propulsion 1 | . 1 1 Utility 1 | . 1 2 Weapon . | . . 1 Tool/Special . | . . . Unused Backups 5 | . 1 4 Power . | . . . Propulsion 2 | . 1 1 Utility 2 | . . 2 Weapon . | . . . Tool/Special 1 | . . 1 Average Slot Usage (%) 97 | . 97 100 Engine 13 | . 13 14 Leg 26 | . 26 28 Device 13 | . 13 14 Storage 14 | . 14 14 Energy Gun 6 | . 6 . Ballistic Gun 19 | . 20 14 Special Weapon 1 | . . 14 Peak Build Rating 8 | 6 7 8 Average Rating 6 | 4 6 7 On Entrance 4 | . 6 7 Avg Prop Armor Cover (%) . | . . . Naked Turns . | . . . Heaviest Build 14 | 10 14 13 Greatest Support 20 | 20 20 20 Greatest Overweight (x) 4 | . 4 . Average Overweight (x) . | . . . Largest Inventory Capacity 8 | 8 8 8 Average Capacity 7 | 6 8 8 Most Carried 8 | 4 8 8 Average Carried 5 | 2 5 6 Final Capacity 8 | 8 8 8 Final Carried 8 | 2 8 7 Class Distribution -------------------- 100% | Mutant Dominant Class ---------------- Mutant | -10/Materials Mutant | -10/Subcaves Resources | -11 -10 -10 ----------- Run | Yrd Mat Sub Matter Collected 460 | 193 251 16 Remotely . | . . . Salvage Created 598 | . 598 . Parts 30 | . 30 . Haulers Intercepted . | . . . Recyclers Shooed . | . . . Parts Field Recycled . | . . . Retrieved Matter . | . . . Parts Self-Destructed . | . . . Prevented . | . . . Parts Restored . | . . . Kills | -11 -10 -10 ------- Run | Yrd Mat Sub Combat Hostiles Destroyed 16 | . 16 . Guns 16 | . 16 . Classes Destroyed 3 | . 3 . Watcher 3 | . 3 . Swarmer 6 | . 6 . Grunt 10 | . 10 . Best Kill Streak 3 | . 3 . Combat Bots Only 3 | . 3 . Max Kills in Single Turn 1 | . 1 . Gunslinging . | . . . Exploded . | . . . Melee . | . . . Uniques/NPCs Destroyed . | . . . Combat | -11 -10 -10 -------- Run | Yrd Mat Sub Hostile Shots Fired 115 | . 109 6 Missed 22 | . 20 2 Hits 93 | . 89 4 Projectile 93 | . 89 4 Critical Strikes 2 | . 2 . Damage Taken 827 | . 769 58 Core 254 | . 209 45 Absorbed by Shields . | . . . Ignored by Resistances 256 | . 239 17 Core Remaining (%) 100 | 100 . . Volleys Fired 64 | . 59 5 Largest 2 | . 2 2 Hottest 120 | . 120 120 Shots Fired 119 | . 112 7 Gun 116 | . 111 5 Cannon . | . . . Launcher . | . . . Special 3 | . 1 2 Kinetic 86 | . 81 5 Thermal 33 | . 31 2 Explosive . | . . . Electromagnetic . | . . . Robot Hit Streak 40 | . 40 7 Robot Miss Streak 1 | . 1 1 Penetration Max . | . . . Secondary Targets 2 | . 2 . Max Gunslinging Chain 1 | . 1 . Shots Hit Robots 101 | . 95 6 Core Hits 40 | . 39 1 Critical Kills . | . . . Critical Parts Destroyed 2 | . 2 . Critical Strikes 5 | . 5 . Burn 3 | . 3 . Destroy 2 | . 2 . Melee Attacks . | . . . Impact . | . . . Slashing . | . . . Piercing . | . . . Sneak Attacks . | . . . Combat Hostiles . | . . . Follow-up Attacks . | . . . Damage Inflicted 932 | . 849 83 Guns 884 | . 849 35 Cannons . | . . . Explosions . | . . . Melee . | . . . Ramming . | . . . Kinetic 534 | . 499 35 Thermal 398 | . 350 48 Explosive . | . . . Electromagnetic . | . . . Impact . | . . . Slashing . | . . . Piercing . | . . . Highest Corruption . | . . . Average Corruption . | . . . Corruption Purged . | . . . Corruption Blocked . | . . . Overload Shots . | . . . Overflow Damage . | . . . Projectiles . | . . . Explosions . | . . . Melee . | . . . Knockbacks . | . . . Impact . | . . . Kinetic . | . . . Secondary . | . . . Self-Inflicted Damage . | . . . Shots . | . . . Rammed . | . . . Targets Rammed . | . . . Kicked . | . . . Crushed . | . . . Highest Temperature 195 | . 195 . Average Temperature 64 | . 64 . Received Heat Transfer 444 | . 444 . Siege Activations . | . . . Martial Activations . | . . . Shielding Activations . | . . . Robots Disrupted . | . . . Combat Hostiles . | . . . Robots Corrupted . | . . . Combat Hostiles . | . . . Parts Fried . | . . . Impact Corruptions . | . . . Robots Melted . | . . . Combat Hostiles . | . . . Parts Melted 1 | . 1 . Heat Transferred 1358 | . 1258 100 Parts Sabotaged . | . . . Parts Stolen . | . . . Parts Stripped . | . . . Power Chain Reactions . | . . . Alert | -11 -10 -10 ------- Run | Yrd Mat Sub Maximum Alert Level . | . . . Low Security (%) 100 | 100 100 . Level 1 . | . . . Level 2 . | . . . Level 3 . | . . . Level 4 . | . . . Level 5 . | . . . High Security . | . . . Max Security . | . . . Peak Influence 100 | . 100 . Initial . | . . . Average 26 | . 28 . Influence Increases 451 | . 451 . Destroy 0b10 Robot/C 320 | . 320 . Destroy 0b10 Robot/NC 15 | . 15 . Destroy Leader 66 | . 66 . Successful Hack 4 | . 4 . Destroy Structure 1 | . 1 . Lose Combat Pursuer 45 | . 45 . Influence Decreases 451 | . 433 18 Entered New Map 11 | . . 11 Time Decay 410 | . 403 7 Lost Part 30 | . 30 . Squads Dispatched 2 | . 2 . Investigation 2 | . 2 . Extermination . | . . . Reinforcement . | . . . Assault . | . . . Garrison . | . . . Intercept . | . . . Searches Triggered . | . . . Construction Impeded . | . . . Haulers Reinforced . | . . . Active Scanning Responses . | . . . Cargo Convoy Interrupts . | . . . Stealth | -11 -10 -10 --------- Run | Yrd Mat Sub Distress Signals 1 | . 1 . Communications Jammed . | . . . Distress Signals . | . . . Times Spotted 24 | . 23 1 Peak Tracking Total 4 | . 4 1 Tactical Retreats 2 | . 2 . Traps | -11 -10 -10 ------- Run | Yrd Mat Sub Traps Triggered 4 | . 4 . Indirectly . | . . . Trap Hack Attempts . | . . . Triggered . | . . . Disarmed . | . . . Reprogrammed . | . . . Reused . | . . . Traps Extracted . | . . . Installed . | . . . Triggered . | . . . Machines | -11 -10 -10 ---------- Run | Yrd Mat Sub Machines Disabled . | . . . Max in Single Turn . | . . . Machines Repaired . | . . . Machines Dismantled . | . . . Machines Sabotaged . | . . . Overloaded Fab Kills . | . . . Hacking | -11 -10 -10 --------- Run | Yrd Mat Sub Machines Accessed 2 | . 2 . Terminals 2 | . 2 . Fabricators . | . . . Repair Stations . | . . . Recycling Units . | . . . Scanalyzers . | . . . Garrison Access . | . . . Total Hacks 4 | . 4 . Successful 2 | . 2 . Failed 2 | . 2 . Catastrophic . | . . . Database Lockouts . | . . . Manual . | . . . Terminals 4 | . 4 . Fabricators . | . . . Repair Stations . | . . . Recycling Units . | . . . Scanalyzers . | . . . Garrison Access . | . . . Terminal Hacks 2 | . 2 . Robot Analysis 1 | . 1 . Prototype ID Bank 1 | . 1 . Fabricator Hacks . | . . . Repair Station Hacks . | . . . Recycling Unit Hacks . | . . . Scanalyzer . | . . . Garrison Access Hacks . | . . . Unauthorized Hacks . | . . . Terminals . | . . . Fabricators . | . . . Repair Stations . | . . . Recycling Units . | . . . Scanalyzers . | . . . Garrison Access . | . . . Data Cores Recovered . | . . . Used . | . . . Hacking Detections 2 | . 2 . Full Trace Events . | . . . Feedback Events . | . . . Feedback Blocked . | . . . Robot Schematics Acquired . | . . . Robots Built . | . . . Authchips . | . . . Time . | . . . Total Robot Build Rating . | . . . Part Schematics Acquired . | . . . Parts Built . | . . . Authchips . | . . . Time . | . . . Total Part Build Rating . | . . . Part Studies Acquired . | . . . Parts Repaired . | . . . Time . | . . . Parts Recycled . | . . . Recycled Matter . | . . . Retrieved Matter . | . . . Retrieved Components . | . . . Parts Scanalyzed . | . . . Part Schematics Acquired . | . . . Parts Damaged . | . . . Bothacking | -11 -10 -10 ------------ Run | Yrd Mat Sub Used RIF Installer . | . . . Robots Hacked . | . . . Non-combat . | . . . Combat . | . . . Robot Hacks Applied . | . . . Relay Couplers Released . | . . . Fabnet Peak Effective % . | . . . Robots Rewired . | . . . Allies Hacked . | . . . Hacks Repelled . | . . . Allies | -11 -10 -10 -------- Run | Yrd Mat Sub Total Allies . | . . . Largest Group . | . . . Highest-Rated Group . | . . . Highest-Rated Ally . | . . . Total Orders . | . . . Ally Attacks . | . . . Total Damage . | . . . Kills . | . . . Allies Corrupted . | . . . Allies Melted . | . . . Intel | -11 -10 -10 ------- Run | Yrd Mat Sub Active Infowar (turns) 1427 | . 1256 171 Structural 1427 | . 1256 171 Robot Analysis Total 1 | . 1 . Derelict Logs Recovered 1 | . . 1 Drone Launches . | . . . Drone Recoveries . | . . . Exploration | -11 -10 -10 ------------- Run | Yrd Mat Sub Turns Passed 1555 | 79 1305 171 Spaces Moved 829 | 63 671 95 Core 15 | 14 1 . Treads . | . . . Legs 814 | 49 670 95 Wheels . | . . . Hover . | . . . Flight . | . . . Fastest Speed 50 | 50 120 120 Average Speed 119 | 104 121 120 Slowest Speed 250 | 120 250 120 Overloaded Moves . | . . . Propulsion Burnouts . | . . . Robots Hopped . | . . . Potential Cave-ins . | . . . Cave-ins Triggered . | . . . Exploration Rate (%) 31 | 4 83 8 Regions Visited 2 Branch Regions 1 Pre-discovered Areas 1 | . . 1 Known Exits Taken . | . . . Unknown Exits Taken 2 | 1 1 . Scrap Searched . | . . . Spaces Dug 1 | . 1 . Terrain Destroyed 1 | . 1 . Melee . | . . . Projectile 1 | . 1 . AOE . | . . . Terrain Rammed . | . . . Walls Destroyed . | . . . Machines Disabled . | . . . Actions | -11 -10 -10 --------- Run | Yrd Mat Sub Total 1281 | 76 1063 142 Wait 336 | . 299 37 Move 827 | 62 670 95 Hop . | . . . Pick Up 27 | 8 18 1 Fast Attach 1 | . 1 . Attach 15 | 6 9 . Detach . | . . . Swap 5 | . 3 2 Drop 6 | . 4 2 Fire 64 | . 59 5 Melee . | . . . Ram . | . . . Kick . | . . . Crush . | . . . Escape Stasis . | . . . Rewire . | . . . Trap . | . . . Miscellaneous . | . . . Route ------- -11/Scrapyard -10/Materials (discovered 5 exits: [*Mat x3] / [*Min] / [*Sub]) -10/Subcaves (discovered 1 exit: [*Mat]) History --------- Turn | Location | Event 9 | -11/Scrapyard | Discovered new exit (range 16) 80 | -11/Scrapyard | Entered Materials 112 | -10/Materials | Discovered new exit (range 5) 238 | -10/Materials | Discovered new exit (range 14) 318 | -10/Materials | Build established: Mutant 402 | -10/Materials | Discovered new exit (range 10) 643 | -10/Materials | Discovered new exit (range 16) 740 | -10/Materials | Core integrity fell below 50% 761 | -10/Materials | Lost 3 parts (2n1w) 1265 | -10/Materials | Discovered new exit (range 11) 1297 | -10/Materials | Core integrity fell below 20% 1385 | -10/Materials | Entered Subcaves 1386 | -10/Subcaves | Approached by a straggling Scientist 1509 | -10/Subcaves | Discovered new exit (range 3) 1556 | -10/Subcaves | Destroyed by SQ-A7F(R) with Subdweller Machine Gun Last Messages --------------- back to the UFD." 01389_ Dropped Aluminum Leg. 01399_ Subatomizers dissect the Aluminum Leg. 01426_ Subatomizers dissect the Aluminum Leg, destroying it. EQ-YVL(c): "I think it's somewhere south of here" 01455_ Subatomizers dissect the Aluminum Leg. 01469_ Acquired derelict log, extracted data. World map updated: -9/Materials. 01481_ Subatomizers dissect the Aluminum Leg. EQ-YVL(c): "I think it's somewhere south of here" 01509_ EXIT=FOUND 01531_ EQ-YVL(c) destroyed. 01543_ Subatomizers dissect the Machine Analyzer. 01549_ Acquired Machine Analyzer. 01550_ Acquired 16 matter. Map ----- +----------------------------------------------------+ | ?????????????## ## ####??### | | ?????????????## ## ###??????? | | ?????????????## ###??????? | | ?????????????## ###???????? | | ?????????????### ## ###???????? | | ?????????????### ### ###????????? | | ??????????????## #########????????? | | ??????????????## ### #########?????????? | | ??????????????###### ###?###???????????? | | ??????????????#### ##??#####?????????? | | ????????????????## ###?? ####?????????? | | ???????????????### #### ? ?????????? | | ???????????????### ### ? ????????????? | | ???????????????## #### ##????????????? | | ???????????????### ### ###???????????? | | ???????????????##### # ### ??????????? | | ????????????????#### ###??????????? | | ????????????????##### ###?????????? | | ????????????????## ## ### ????? | | ????????????????## ##????? | | ????????????????### ##????? | | ????????????????## # ##### ###????? | | ????????########### ############ ##????? | | ????????########## #####???### #????? | | ????????##< ##< #### ???????????????? | | ????????## # R @ ####???????????????? | | ?????????? ##<#< # ???????????????? | | ?????????? ### ## # ???????????????? | | ??????????? ## #### ## ???????????????? | | ????????????### ### ### ???????????????? | | ????????????### < ## ###????????????????? | | ?????????????### #### ##????????????????? | | ?????????????######## ##????????????????? | | ??????????????#####?? ###????????????????? | | ????????????????????? ###????????????????? | | ????????????????????? ##?????????????????? | | ?????????????????????? ##?????????????????? | | ?????????????????????? ?????????????????? | | ??????????????????????????????????????????? | | ??????????????????????????????????????????? | | ??????????????????????????????????????????? | | ??????????????????????????????????????????? | | ??????????????????????????????????????????? | | ??????????????????????????????????????????? | | ??????????????????????????????????????????? | | ??????????????????????????????????????????? | | ??????????????????????????????????????????? | | ??????????????????????????????????????????? | | ??????????????????????????????????????????? | | ??????????????????????????????????????????? | +----------------------------------------------------+ Best States ------------- Heat Dissipation 25 Energy Generation 10 Energy Capacity 250 Matter Stores 300 Matter Capacity 300 Sight Range 16 Terrain Scan Density 10 Resistance: KI 20 Resistance: TH 20 Resistance: EX 20 Resistance: EM 20 Resistance: I 20 Resistance: S 20 Resistance: P 20 Evasion (%) 55 Offensive Hacking 10 Item Schematics ----------------- None Robot Schematics ------------------ None Fabricated ------------ Nothing Repaired ---------- Nothing Studied --------- None Alien Tech Used ----------------- None Achievements -------------- None Challenges ------------ None Game ------ Seed WeldingLayeredVibroblade Manual? 0 Play Time 00:12:28 Cumulative 73.1 hours Start 2025.12.20 @ 03:37:21 End 2025.12.20 @ 03:48:33 Sessions 1 Manual Loads 0 Difficulty Adventurer Special Mode None Game No. 70 Rogue 0 Adventurer 70 Explorer 0 Win Type - Total 1 Types 1/0/0/0/0/0/0/0/0/0 Lore% 30 Gallery% 42 Achievement% 22 Wizard Run 0 Options --------- Layout 1 ASCII 0 Keyboard 0 Movement Mouse Keybinds 0 Fullscreen 1 Font 24/Smallcaps Map View 50x35 Zoom Use 0% Tactical HUD 1 Map Filters NONE Filters NONE Steam 1 RUN: 7f22757e-80c4-413b-b9dc-c4528cfabfa9